Cogmind - Beta 13 X2 @@@ ROGUE MODE // 2023.12.24 @ 12:33:52 Player: f3-rnm Result: Destroyed by S5-8GW(R) with Subdweller Laser Performance ------------- Evolutions (0) 0 Regions Visited (2) 400 Robots Destroyed (38) 190 Value Destroyed (1096) 1096 Prototype IDs (0) 0 Alien Tech Used (0) 0 Bonus (0) 0 TOTAL SCORE: 1686 Bonus ------- None Cogmind --------- Core Integrity 0/250 Matter 154/300 Energy 100/100 System Corruption 0% Temperature Cool (6) Movement Treading (160) Location -10/Subcaves Parts ------- > --- POWER (1) -------- (None) > --- PROPULSION (2) --- Spiked Treads > --- UTILITY (2) ------ (None) > --- WEAPON (2) ------- Improved Light Cannon Slug Cannon > --- INVENTORY (5) ---- Medium Matter Pod (44) Improved Light Cannon Mini Grenade Launcher Scrap Shield Fragment (48) Peak State ------------ > --- POWER ------------ Ion Engine > --- PROPULSION ------- Light Treads Light Treads > --- UTILITY ---------- Scrap Shield > --- WEAPON ----------- Improved Light Cannon Slug Cannon > --- INVENTORY -------- Light Armor Plating Improved Light Cannon Improved Light Cannon Improved Light Cannon Mini Grenade Launcher [Rating: 13] Favorites ----------- Power Ion Engine Engine Ion Engine Propulsion Light Treads Treads Light Treads Utility Light Armor Plating Storage Huge Storage Unit Processor Targeting Computer Protection Light Armor Plating Weapon Autogun Ballistic Gun Autogun Ballistic Cannon Improved Light Cannon Build | -11 -10 -10 ------- Run | Yrd Mat Sub Slots Evolved . | . . . Power . | . . . Propulsion . | . . . Utility . | . . . Weapon . | . . . Parts Attached 23 | 6 8 9 Power 1 | 1 . . Engine 1 | 1 . . Core . | . . . Reactor . | . . . Propulsion 4 | 2 . 2 Treads 4 | 2 . 2 Leg . | . . . Wheel . | . . . Hover . | . . . Flight . | . . . Utility 8 | 1 4 3 Device . | . . . Storage 4 | 1 3 . Processor 1 | . . 1 Hackware . | . . . Protection 3 | . 1 2 Artifact . | . . . Weapon 10 | 2 4 4 Energy Gun . | . . . Energy Cannon . | . . . Ballistic Gun 6 | 2 4 . Ballistic Cannon 4 | . . 4 Launcher . | . . . Special Weapon . | . . . Impact Weapon . | . . . Slashing Weapon . | . . . Piercing Weapon . | . . . Special Melee Weapon . | . . . Unidentified Prototypes . | . . . Parts Lost 6 | . . 6 Power 1 | . . 1 Propulsion 3 | . . 3 Utility 2 | . . 2 Weapon . | . . . Highest Loss Streak 3 | . . 3 To Critical Strikes 1 | . . 1 Average Slot Usage (%) 84 | . 98 73 Engine 9 | . 14 5 Treads 26 | . 28 25 Storage 6 | . 14 . Processor 1 | . . 2 Protection 11 | . 12 11 Ballistic Gun 12 | . 28 . Ballistic Cannon 15 | . . 27 Naked Turns . | . . . Heaviest Build 94 | 14 94 34 Greatest Support 40 | 40 40 40 Greatest Overweight (x) 2 | . 2 . Average Overweight (x) . | . . . Largest Inventory Capacity 25 | 8 25 5 Average Capacity 10 | 6 17 5 Most Carried 23 | 4 23 5 Average Carried 9 | 1 14 4 Final Capacity 25 | 8 25 5 Final Carried 23 | 2 23 4 Class Distribution -------------------- 96% | Mutant 3% | Subdweller-Mutant Dominant Class ---------------- Mutant | -10/Materials Mutant | -10/Subcaves Resources | -11 -10 -10 ----------- Run | Yrd Mat Sub Matter Collected 1699 | 177 693 829 Remotely . | . . . Salvage Created 1240 | . 1010 230 Parts 78 | . 61 17 Haulers Intercepted 1 | . 1 . Recyclers Shooed . | . . . Parts Field Recycled . | . . . Retrieved Matter . | . . . Parts Self-Destructed 1 | . . 1 Prevented . | . . . Kills | -11 -10 -10 ------- Run | Yrd Mat Sub Combat Hostiles Destroyed 26 | . 13 13 Guns 13 | . 13 . Cannons 13 | . . 13 Classes Destroyed 9 | . 7 2 Worker 2 | . 2 . Builder 3 | . 3 . Hauler 1 | . 1 . Recycler 3 | . 3 . Operator 1 | . 1 . Watcher 2 | . 2 . Grunt 13 | . 13 . Artisan 1 | . . 1 Subdweller 13 | . . 13 Best Kill Streak 6 | . 6 2 Combat Bots Only 4 | . 4 2 Max Kills in Single Turn 1 | . 1 1 Gunslinging . | . . . Exploded . | . . . Melee . | . . . Uniques/NPCs Destroyed . | . . . Combat | -11 -10 -10 -------- Run | Yrd Mat Sub Hostile Shots Fired 131 | . 39 92 Missed 40 | . 13 27 Damage Taken 1755 | . 313 1442 Core 267 | . 28 239 Absorbed by Shields . | . . . Core Remaining (%) 100 | 100 . . Volleys Fired 158 | . 77 81 Largest 2 | . 2 2 Hottest 87 | . 46 87 Shots Fired 316 | . 154 162 Gun 154 | . 154 . Cannon 162 | . . 162 Launcher . | . . . Special . | . . . Kinetic 316 | . 154 162 Thermal . | . . . Explosive . | . . . Electromagnetic . | . . . Robot Hit Streak 11 | . 10 11 Robot Miss Streak 8 | . 8 4 Penetration Max . | . . . Secondary Targets . | . . . Shots Hit Robots 185 | . 87 98 Core Hits 62 | . 36 26 Critical Kills 1 | . . 1 Critical Parts Destroyed 2 | . . 2 Critical Strikes 6 | . . 6 Destroy 6 | . . 6 Melee Attacks . | . . . Impact . | . . . Slashing . | . . . Piercing . | . . . Sneak Attacks . | . . . Combat Hostiles . | . . . Follow-up Attacks . | . . . Damage Inflicted 3745 | . 1401 2344 Guns 1389 | . 1389 . Cannons 2344 | . . 2344 Explosions . | . . . Melee . | . . . Ramming 12 | . 12 . Kinetic 3733 | . 1389 2344 Thermal . | . . . Explosive . | . . . Electromagnetic . | . . . Impact . | . . . Slashing . | . . . Piercing . | . . . Highest Corruption . | . . . Average Corruption . | . . . Corruption Purged . | . . . Corruption Blocked . | . . . Overload Shots . | . . . Overflow Damage 17 | . . 17 Projectiles 17 | . . 17 Explosions . | . . . Melee . | . . . Knockbacks 22 | . . 22 Impact . | . . . Kinetic 21 | . . 21 Secondary 1 | . . 1 Self-Inflicted Damage . | . . . Shots . | . . . Rammed 1 | . 1 . Targets Rammed 1 | . 1 . Kicked . | . . . Crushed . | . . . Highest Temperature 103 | . 103 . Average Temperature 20 | . 20 . Received Heat Transfer 276 | . 180 96 Siege Activations . | . . . Robots Corrupted . | . . . Combat Hostiles . | . . . Parts Fried . | . . . Impact Corruptions . | . . . Robots Melted . | . . . Combat Hostiles . | . . . Parts Melted . | . . . Heat Transferred . | . . . Parts Sabotaged . | . . . Parts Stolen . | . . . Parts Stripped . | . . . Power Chain Reactions . | . . . Missiles Intercepted . | . . . Alert | -11 -10 -10 ------- Run | Yrd Mat Sub Peak Influence 136 | . 136 . Initial . | . . . Average 47 | . 49 . Maximum Alert Level . | . . . Low Security (%) 100 | 100 100 . Level 1 . | . . . Level 2 . | . . . Level 3 . | . . . Level 4 . | . . . Level 5 . | . . . High Security . | . . . Max Security . | . . . Squads Dispatched 4 | . 4 . Investigation 2 | . 2 . Extermination . | . . . Reinforcement 2 | . 2 . Assault . | . . . Garrison . | . . . Intercept . | . . . Searches Triggered . | . . . Construction Impeded . | . . . Haulers Reinforced . | . . . Active Scanning Responses . | . . . Cargo Convoy Interrupts . | . . . Stealth | -11 -10 -10 --------- Run | Yrd Mat Sub Distress Signals . | . . . Communications Jammed . | . . . Distress Signals . | . . . Times Spotted 37 | . 23 14 Peak Tracking Total 2 | . 2 2 Tactical Retreats . | . . . Traps | -11 -10 -10 ------- Run | Yrd Mat Sub Traps Triggered 1 | . 1 . Indirectly . | . . . Trap Hack Attempts . | . . . Triggered . | . . . Disarmed . | . . . Reprogrammed . | . . . Reused . | . . . Traps Extracted . | . . . Installed . | . . . Triggered . | . . . Machines | -11 -10 -10 ---------- Run | Yrd Mat Sub Machines Disabled 1 | . 1 . Max in Single Turn 1 | . 1 . Machines Repaired . | . . . Machines Dismantled . | . . . Machines Sabotaged . | . . . Overloaded Fab Kills . | . . . Hacking | -11 -10 -10 --------- Run | Yrd Mat Sub Machines Accessed 4 | . 4 . Terminals 4 | . 4 . Fabricators . | . . . Repair Stations . | . . . Recycling Units . | . . . Scanalyzers . | . . . Garrison Access . | . . . Total Hacks 11 | . 11 . Successful 2 | . 2 . Failed 9 | . 9 . Catastrophic 2 | . 2 . Database Lockouts . | . . . Manual 10 | . 10 . Terminals 11 | . 11 . Fabricators . | . . . Repair Stations . | . . . Recycling Units . | . . . Scanalyzers . | . . . Garrison Access . | . . . Terminal Hacks 2 | . 2 . Robot Analysis 1 | . 1 . Hauler Manifests 1 | . 1 . Fabricator Hacks . | . . . Repair Station Hacks . | . . . Recycling Unit Hacks . | . . . Scanalyzer . | . . . Garrison Access Hacks . | . . . Unauthorized Hacks . | . . . Terminals . | . . . Fabricators . | . . . Repair Stations . | . . . Recycling Units . | . . . Scanalyzers . | . . . Garrison Access . | . . . Data Cores Recovered . | . . . Used . | . . . Hacking Detections 3 | . 3 . Full Trace Events 1 | . 1 . Feedback Events . | . . . Feedback Blocked . | . . . Robot Schematics Acquired . | . . . Robots Built . | . . . Authchips . | . . . Time . | . . . Total Robot Build Rating . | . . . Part Schematics Acquired . | . . . Parts Built . | . . . Authchips . | . . . Time . | . . . Total Part Build Rating . | . . . Parts Repaired . | . . . Time . | . . . Parts Recycled . | . . . Recycled Matter . | . . . Retrieved Matter . | . . . Retrieved Components . | . . . Parts Scanalyzed . | . . . Part Schematics Acquired . | . . . Parts Damaged . | . . . Bothacking | -11 -10 -10 ------------ Run | Yrd Mat Sub Used RIF Installer . | . . . Robots Hacked . | . . . Non-combat . | . . . Combat . | . . . Robot Hacks Applied . | . . . Relay Couplers Released . | . . . Fabnet Peak Effective % . | . . . Robots Rewired . | . . . Allies Hacked . | . . . Hacks Repelled . | . . . Allies | -11 -10 -10 -------- Run | Yrd Mat Sub Total Allies . | . . . Largest Group . | . . . Highest-Rated Group . | . . . Highest-Rated Ally . | . . . Total Orders . | . . . Ally Attacks . | . . . Total Damage . | . . . Kills . | . . . Allies Corrupted . | . . . Allies Melted . | . . . Intel | -11 -10 -10 ------- Run | Yrd Mat Sub Robot Analysis Total 1 | . 1 . Derelict Logs Recovered 2 | . . 2 Drone Launches . | . . . Drone Recoveries . | . . . Exploration | -11 -10 -10 ------------- Run | Yrd Mat Sub Turns Passed 5545 | 70 2447 3028 Spaces Moved 2711 | 40 967 1704 Core 6 | 6 . . Treads 2705 | 34 967 1704 Legs . | . . . Wheels . | . . . Hover . | . . . Flight . | . . . Fastest Speed 50 | 50 160 160 Average Speed 174 | 143 201 160 Slowest Speed 320 | 160 320 160 Overloaded Moves . | . . . Propulsion Burnouts . | . . . Robots Hopped . | . . . Cave-ins Triggered . | . . . Exploration Rate (%) 52 | 4 88 66 Regions Visited 2 Branch Regions 1 Pre-discovered Areas 2 | . . 2 Known Exits Taken . | . . . Unknown Exits Taken 2 | 1 1 . Scrap Searched 4 | . . 4 Spaces Dug . | . . . Terrain Destroyed 20 | . . 20 Melee . | . . . Projectile 20 | . . 20 AOE . | . . . Terrain Rammed . | . . . Walls Destroyed . | . . . Machines Disabled . | . . . Actions | -11 -10 -10 --------- Run | Yrd Mat Sub Total 3247 | 53 1349 1845 Wait 297 | . 260 37 Move 2709 | 39 966 1704 Hop . | . . . Pick Up 43 | 8 28 7 Fast Attach 2 | . 1 1 Attach 11 | 6 1 4 Detach . | . . . Swap 10 | . 6 4 Drop 16 | . 9 7 Fire 158 | . 77 81 Melee . | . . . Ram . | . . . Kick . | . . . Crush 1 | . 1 . Escape Stasis . | . . . Rewire . | . . . Trap . | . . . Miscellaneous . | . . . Route ------- -11/Scrapyard -10/Materials (discovered 5 exits: [*Mat x3] / [*Min] / [*Sub]) -10/Subcaves (discovered 1 exit: [*Mat]) History --------- Turn | Location | Event 4 | -11/Scrapyard | Discovered new exit (range 15) 71 | -11/Scrapyard | Entered Materials 333 | -10/Materials | Build established: Mutant 1147 | -10/Materials | Discovered new exit (range 12) 1408 | -10/Materials | Discovered new exit (range 16) 1821 | -10/Materials | Discovered new exit (range 11) 2063 | -10/Materials | Discovered new exit (range 8) 2149 | -10/Materials | Discovered new exit (range 15) 2518 | -10/Materials | Entered Subcaves 2686 | -10/Subcaves | Shifting Twisted Machinery released Slug Cannon 2702 | -10/Subcaves | Shifting Twisted Machinery released Sub. Laser 2725 | -10/Subcaves | Learned location of Zion (-6) 2725 | -10/Subcaves | Met a Zionite searching for "candidates" 2753 | -10/Subcaves | Learned location of Storage (-7) 3055 | -10/Subcaves | A swath of the cavern ceiling suddenly collapsed 4045 | -10/Subcaves | Discovered new exit (range 9) 4976 | -10/Subcaves | Core integrity fell below 50% 4995 | -10/Subcaves | Core integrity fell below 20% 4996 | -10/Subcaves | Ambushed by Subdweller buried in earth 5046 | -10/Subcaves | Lost 3 parts (2n1u) 5390 | -10/Subcaves | Learned 8 Materials zone layouts 5546 | -10/Subcaves | Destroyed by S5-8GW(R) with Subdweller Laser Last Messages --------------- 05019_ IT-OAW(R) affixes Scrap Shield Fragment to Scrap Shield. 05021_ IT-OAW(R) suffers critical hit (Destroy). 05024_ Destroyed Sub. Power Source. 05024_ IT-OAW(R) knocked back. 05027_ Destroyed Scrap Shield. 05027_ IT-OAW(R) knocked back. 05030_ IT-OAW(R) destroyed. 05039_ Acquired 13 matter. 05041_ Acquired 2 matter. 05044_ Acquired 4 matter. 05054_ Acquired 20 matter. 05090_ Acquired 6 matter. 05184_ YN-AZY(u) deconstructs Twisted Machinery. 05390_ Acquired derelict log, extracted data. Data stored: Materials zone layouts (x8). 05479_ Acquired 3 matter. 05519_ BH-H9I(R): "ECOKILL!" 05522_ Slug penetrates Wall. S5-8GW(R) emerges from concealment. 05544_ BH-H9I(R) destroyed. Map ----- +----------------------------------------------------+ | ?????????????????????????????#### #][ | | ???????????????????????????# " | | ??????????????????????????????#### " | | ?????????????????????????????????## # # ## | | ??????????????????????????????????# ?###" "## # | | ??????????????????????????????????#????# " # | | ???????????????????????????????????????## "#"# | | ????????????????????????????????????????####"# | | ??????????????????????????????????????????### ] | | ?????????????????????????????????????????##" | | ????????????????????????????????????????## " | | ????????????????????????????????????????# " | | ???????????????????????????????????????## "" # | | ??????????????????????????????????????## "" " ## | | ????????????????###???????????????????# """" #? | | ??????????###?### #??????????????????## """" | | ??????????# ### ##???????????????### ##"" | | ????####### ##???????###????#"" ###"" | | #### ## # # #?????### #?##### ##?##### | | "## ####?## #?#""### # # ##"# ## | | # # ## ## ### ### ##### "#"#"## | | ## "## ### ## ## & #?# "##?# #""""## | | "" # ## ## ! ! ### #?# #""## ? | | !! ### ;# ### #"# | | ! ###?## ## #### ? | | %# # #????#; @ &R&##?????? | | "%%#### # #????### [ " #?????? | | " # #??# ## #??????#; ####????? | | #####??# ## #??###?#### #????? | | #??????# ### #?# #????## ##????? | | #??????####?# ## #?????## ####?????? | | #???????????# #??????# ## #????????? | | ????????????## #??????######### #????????? | | ?????????????# #??????????????## #????? | | ?????????????# #???????????????### ##????? | | ?????????????# #??????????????????####?????? | | ?????????????# #???????????????????????????? | | ?????????????# #???????????????????????????? | | ?????????????# ##???????????????????????????? | | ?????????????# ##????????????????????????????? | | ?????????????# #?????????????????????????????? | | ?????????????#### #?????????????????????????????? | | ???????????????## ##????????????????????????????? | | ???????????????# #######??????????????????????? | | ???????????????## ## #??????????????????????? | | ????????????????## #??????????????????????? | | ?????????????????## #??????????????????????? | | ?????????###??????# #??????????????????????? | | ????????## ####??## ##??????????????????????? | | ??####### ##?# ####????????????????????? | +----------------------------------------------------+ Best States ------------- Heat Dissipation 25 Energy Generation 10 Energy Capacity 250 Matter Stores 300 Matter Capacity 300 Sight Range 16 Terrain Scan Density 10 Armor Coverage 800 Evasion (%) 40 Targeting Accuracy 5 Recoil Reduction 2 Item Schematics ----------------- None Robot Schematics ------------------ None Fabricated ------------ Nothing Alien Tech Used ----------------- None Achievements -------------- None Challenges ------------ None Game ------ Seed FactoryHeartBooster Manual? 0 Play Time 00:17:28 Cumulative 132.6 hours Start 2023.12.24 @ 12:15:53 End 2023.12.24 @ 12:33:52 Sessions 1 Manual Loads 0 Difficulty Rogue Special Mode None Game No. 148 Rogue 112 Adventurer 36 Explorer 0 Win Type - Total 8 Types 2/0/6/0/0/0/0/0/0 Lore% 54 Gallery% 77 Achievement% 63 Wizard Run 0 Options --------- ASCII 0 Keyboard 0 Movement Mouse Keybinds 0 Fullscreen 1 Font 18/SmallcapsGlow Map View 76x50 Zoom Use 0% Tactical HUD 1 Map Filters NONE Filters NONE Steam 1 RUN: dcfa8b95-9f8f-44f7-af80-25019e749300